[Event "Icelandic Team-ch Premier 2021-22"]
[Site "Reykjavik"]
[Date "2022.03.05"]
[Round "9.19"]
[White "Nagy, Gabor"]
[Black "Thorfinnsson, Bjorn"]
[Result "1/2-1/2"]
[ECO "A84"]
[WhiteElo "2530"]
[BlackElo "2387"]
[Annotator "ChessBase"]
[PlyCount "59"]
[EventDate "2022.03.05"]
[EventType "team-tourn"]
[EventCountry "ISL"]
[SourceTitle "playchess.com"]
[Source "ChessBase"]
[SourceQuality "1"]
[TimeControl "5400+30"]

1. c4 {[%emt 0:00:04]} c6 {[%emt 0:07:01]} 2. Nf3 {[%emt 0:00:37]} d5 {[%emt 0:00:07]} 3. d4 {[%emt 0:00:43]} e6 {[%emt 0:00:22]} 4. e3 {[%emt 0:00:31]} f5 {[%emt 0:00:18]} 5. Bd3 {[%emt 0:01:17]} Nf6 {[%emt 0:00:08]} 6. b3 {[%emt 0:01:28]} Bb4+ {[%emt 0:05:43]} 7. Nbd2 {[%emt 0:00:27]} O-O {[%emt 0:00:08]} 8. O-O {[%emt 0:00:36]} Ne4 {[%emt 0:03:20]} 9. Bb2 {[%emt 0:05:58]} Bd7 {[%emt 0:01:36]} 10. a3 {[%emt 0:01:54]} Bd6 {[%emt 0:02:40]} 11. Ne5 {[%emt 0:04:07]} Be8 {[%emt 0:01:21]} 12. Ndf3 {[%emt 0:06:02]} Bh5 {[%emt 0:00:56]} 13. Be2 {[%emt 0:01:14]} Nd7 {[%emt 0:03:53]} 14. Nxd7 {[%emt 0:06:30]} Bxf3 {[%emt 0:00:45]} 15. Ne5 {[%emt 0:05:34]} Bxe2 {[%emt 0:00:57]} 16. Qxe2 {[%emt 0:00:07]} Qe7 {[%emt 0:02:34]} 17. f3 {[%emt 0:01:54]} Nf6 {[%emt 0:00:11]} 18. a4 {[%emt 0:04:25]} Nd7 {[%emt 0:05:06]} 19. Nxd7 {[%emt 0:02:22]} Qxd7 {[%emt 0:00:05]} 20. e4 {[%emt 0:01:23]} fxe4 {[%emt 0:00:13]} 21. fxe4 {[%emt 0:00:09]} Rxf1+ {[%emt 0:00:05]} 22. Rxf1 {[%emt 0:00:09]} Rf8 {[%emt 0:00:09]} 23. Rxf8+ {[%emt 0:01:29]} Bxf8 {[%emt 0:00:10]} 24. g3 {[%emt 0:02:40]} dxe4 {[%emt 0:03:15]} 25. Qxe4 {[%emt 0:00:21]} Be7 {[%emt 0:01:09]} 26. Bc1 {[%emt 0:02:51]} e5 {[%emt 0:01:46]} 27. Be3 {[%emt 0:02:51]} exd4 {[%emt 0:00:18]} 28. Bxd4 {[%emt 0:00:53]} a6 {[%emt 0:00:21]} 29. Kg2 {[%emt 0:00:13]} Bf8 {[%emt 0:00:20]} 30. h3 {[%emt 0:02:21]} 1/2-1/2

[Event "Icelandic Team-ch Premier 2021-22"]
[Site "Reykjavik"]
[Date "2022.03.05"]
[Round "9.20"]
[White "Gunnarsson, Jon Viktor"]
[Black "Pantzar, Milton"]
[Result "1/2-1/2"]
[ECO "D00"]
[WhiteElo "2439"]
[BlackElo "2422"]
[Annotator "ChessBase"]
[PlyCount "113"]
[EventDate "2022.03.05"]
[EventType "team-tourn"]
[EventCountry "ISL"]
[SourceTitle "playchess.com"]
[Source "ChessBase"]
[SourceQuality "1"]
[TimeControl "5400+30"]

1. d4 {[%emt 0:00:02]} d5 {[%emt 0:00:22]} 2. Nc3 {[%emt 0:00:11]} Nf6 {[%emt 0:00:40]} 3. Bf4 {[%emt 0:00:12]} e6 {[%emt 0:03:05]} 4. e3 {[%emt 0:02:29]} Bb4 {[%emt 0:00:50]} 5. Nge2 {[%emt 0:04:22]} O-O {[%emt 0:04:15]} 6. a3 {[%emt 0:06:31]} Bd6 {[%emt 0:01:09]} 7. h3 {[%emt 0:02:00]} c5 {[%emt 0:03:25]} 8. dxc5 {[%emt 0:04:39]} Bxc5 {[%emt 0:01:23]} 9. Nd4 {[%emt 0:02:49]} Nc6 {[%emt 0:06:30]} 10. Be2 {[%emt 0:09:30]} Re8 {[%emt 0:08:38]} 11. Nb3 {[%emt 0:07:57]} Bf8 {[%emt 0:06:27]} 12. O-O {[%emt 0:03:04]} h6 {[%emt 0:01:42]} 13. Bf3 {[%emt 0:03:48]} e5 {[%emt 0:03:03]} 14. Bg3 {[%emt 0:01:10]} Be6 {[%emt 0:00:21]} 15. Qd2 {[%emt 0:03:18]} Qd7 {[%emt 0:04:46]} 16. Rad1 {[%emt 0:01:47]} Rad8 {[%emt 0:00:50]} 17. Na4 {[%emt 0:03:29]} b6 {[%emt 0:00:53]} 18. Nc3 {[%emt 0:01:55]} a6 {[%emt 0:05:03]} 19. Rfe1 {[%emt 0:01:43]} Qa7 {[%emt 0:08:48]} 20. Na2 {[%emt 0:02:16]} Ne4 {[%emt 0:02:56]} 21. Bxe4 {[%emt 0:00:53]} dxe4 {[%emt 0:00:07]} 22. Qe2 {[%emt 0:00:20]} f5 {[%emt 0:07:38]} 23. Rxd8 {[%emt 0:01:23]} Rxd8 {[%emt 0:00:11]} 24. Rd1 {[%emt 0:00:12]} Rxd1+ {[%emt 0:04:38]} 25. Qxd1 {[%emt 0:00:04]} g5 {[%emt 0:00:20]} 26. Nc3 {[%emt 0:01:15]} Qf7 {[%emt 0:02:36]} 27. Bh2 {[%emt 0:00:48]} h5 {[%emt 0:03:33]} 28. f3 {[%emt 0:04:29]} exf3 {[%emt 0:01:48]} 29. Qxf3 {[%emt 0:00:04]} Bd7 {[%emt 0:03:05]} 30. Qd5 {[%emt 0:01:30]} h4 {[%emt 0:02:06]} 31. e4 {[%emt 0:02:35]} f4 {[%emt 0:01:33]} 32. Kf1 {[%emt 0:00:59]} f3 {[%emt 0:04:59]} 33. Nd2 {[%emt 0:06:27]} fxg2+ {[%emt 0:02:32]} 34. Kxg2 {[%emt 0:00:08]} Bc5 {[%emt 0:01:22]} 35. Qxf7+ {[%emt 0:01:16]} Kxf7 {[%emt 0:00:01]} 36. Nf3 {[%emt 0:00:07]} Be7 {[%emt 0:04:43]} 37. Nd5 {[%emt 0:00:57]} Bd8 {[%emt 0:00:08]} 38. Nb4 {[%emt 0:02:34]} Bf6 {[%emt 0:01:19]} 39. Nxa6 {[%emt 0:00:48]} g4 {[%emt 0:01:14]} 40. hxg4 {[%emt 0:00:08]} Bxg4 {[%emt 0:00:04]} 41. Nb4 {[%emt 0:00:26]} Nxb4 {[%emt 0:00:11]} 42. axb4 {[%emt 0:00:03]} Ke6 {[%emt 0:00:06]} 43. c4 {[%emt 0:00:41]} Bh5 {[%emt 0:00:46]} 44. Kf2 {[%emt 0:01:49]} h3 {[%emt 0:01:38]} 45. c5 {[%emt 0:00:39]} b5 {[%emt 0:00:36]} 46. c6 {[%emt 0:01:27]} Bxf3 {[%emt 0:00:27]} 47. Kxf3 {[%emt 0:00:04]} Kd6 {[%emt 0:00:08]} 48. Kg4 {[%emt 0:00:10]} Kxc6 {[%emt 0:00:08]} 49. Kxh3 {[%emt 0:00:31]} Kd7 {[%emt 0:00:13]} 50. Kg4 {[%emt 0:00:33]} Ke6 {[%emt 0:00:09]} 51. Bg1 {[%emt 0:00:42]} Be7 {[%emt 0:01:26]} 52. Bc5 {[%emt 0:00:13]} Bd8 {[%emt 0:00:13]} 53. Kh5 {[%emt 0:00:49]} Kf7 {[%emt 0:00:42]} 54. b3 {[%emt 0:00:51]} Kf6 {[%emt 0:00:53]} 55. Bf2 {[%emt 0:02:39]} Kf7 {[%emt 0:00:07]} 56. Bc5 {[%emt 0:08:23]} Kf6 {[%emt 0:00:09]} 57. Kg4 {[%emt 0:00:52]} 1/2-1/2

[Event "Icelandic Team-ch Premier 2021-22"]
[Site "Reykjavik"]
[Date "2022.03.05"]
[Round "9.21"]
[White "Brynell, Stellan"]
[Black "Sammalvuo, Tapani"]
[Result "1/2-1/2"]
[ECO "A46"]
[WhiteElo "2405"]
[BlackElo "2420"]
[Annotator "NA"]
[PlyCount "41"]
[EventDate "2022.03.05"]
[EventType "team-tourn"]
[EventCountry "ISL"]
[SourceTitle "playchess.com"]
[Source "ChessBase"]
[SourceQuality "1"]
[TimeControl "5400+30"]

1. d4 {[%emt 0:00:04]} Nf6 {[%emt 0:00:20]} 2. Nf3 {[%emt 0:00:08]} e6 {[%emt 0:00:05]} 3. g3 {[%emt 0:00:30]} d5 {[%emt 0:04:13]} 4. Bg2 {[%emt 0:00:38]} b5 {[%emt 0:01:17]} 5. a4 {[%emt 0:02:51]} b4 {[%emt 0:00:06]} 6. c4 {[%emt 0:01:06]} bxc3 {[%emt 0:00:07]} 7. Nxc3 {[%emt 0:01:09]} Be7 {[%emt 0:13:02]} 8. O-O {[%emt 0:03:13]} O-O {[%emt 0:04:02]} 9. Bf4 {[%emt 0:08:23]} Na6 {[%emt 0:12:32]} 10. Ne5 {[%emt 0:02:58]} Nb4 {[%emt 0:06:39]} 11. Na2 {[%emt 0:09:48]} Nxa2 {[%emt 0:00:59]} 12. Nc6 {[%emt 0:00:20]} Qd7 {[%emt 0:00:06]} 13. Nxe7+ {[%emt 0:00:12]} Qxe7 {[%emt 0:00:02]} 14. Rxa2 {[%emt 0:00:09]} Ba6 {[%emt 0:27:14]} 15. Qc2 {[%emt 0:09:00]} Qb4 {[%emt 0:04:23]} 16. Qc3 {[%emt 0:00:36]} Qxc3 {[%emt 0:03:00]} 17. bxc3 {[%emt 0:00:29]} Rfc8 {[%emt 0:00:18]} 18. Rb1 {[%emt 0:04:07]} c5 {[%emt 0:01:06]} 19. Bf3 {[%emt 0:03:38]} cxd4 {[%emt 0:02:06]} 20. cxd4 {[%emt 0:00:09]} Ne4 {[%emt 0:00:21]} 21. Bxe4 {[%emt 0:05:33]} 1/2-1/2

[Event "Icelandic Team-ch Premier 2021-22"]
[Site "Reykjavik"]
[Date "2022.03.05"]
[Round "9.22"]
[White "Kjartansson, David"]
[Black "Petersson, Baldur Teodor"]
[Result "1-0"]
[ECO "D00"]
[WhiteElo "2304"]
[BlackElo "2242"]
[Annotator "ChessBase"]
[PlyCount "119"]
[EventDate "2022.03.05"]
[EventType "team-tourn"]
[EventCountry "ISL"]
[SourceTitle "playchess.com"]
[Source "ChessBase"]
[SourceQuality "1"]
[TimeControl "5400+30"]

1. d4 {[%emt 0:00:03]} d5 {[%emt 0:01:03]} 2. Nc3 {[%emt 0:00:07]} Nf6 {[%emt 0:00:29]} 3. Bf4 {[%emt 0:00:08]} Nbd7 {[%emt 0:01:35]} 4. e3 {[%emt 0:02:22]} a6 {[%emt 0:01:53]} 5. g4 {[%emt 0:01:06]} h6 {[%emt 0:01:59]} 6. Bg2 {[%emt 0:01:38]} e6 {[%emt 0:01:06]} 7. h4 {[%emt 0:01:40]} g6 {[%emt 0:12:53]} 8. f3 {[%emt 0:04:08]} c5 {[%emt 0:01:46]} 9. Nge2 {[%emt 0:00:21]} b5 {[%emt 0:01:42]} 10. a3 {[%emt 0:00:20]} Bb7 {[%emt 0:01:42]} 11. Qd2 {[%emt 0:00:20]} Nb6 {[%emt 0:04:20]} 12. b3 {[%emt 0:01:49]} Bd6 {[%emt 0:00:57]} 13. a4 {[%emt 0:04:07]} b4 {[%emt 0:03:26]} 14. Nd1 {[%emt 0:00:10]} a5 {[%emt 0:06:53]} 15. dxc5 {[%emt 0:01:00]} Bxc5 {[%emt 0:00:07]} 16. Be5 {[%emt 0:01:02]} Nbd7 {[%emt 0:03:07]} 17. Bb2 {[%emt 0:00:40]} Qb6 {[%emt 0:02:44]} 18. Nf4 {[%emt 0:03:47]} Bd6 {[%emt 0:08:00]} 19. Nf2 {[%emt 0:02:43]} Be5 {[%emt 0:01:09]} 20. Bd4 {[%emt 0:06:18]} Bxd4 {[%emt 0:02:43]} 21. exd4 {[%emt 0:00:23]} Ba6 {[%emt 0:03:16]} 22. O-O-O {[%emt 0:01:08]} h5 {[%emt 0:02:10]} 23. Rhe1 {[%emt 0:04:20]} O-O-O {[%emt 0:05:02]} 24. g5 {[%emt 0:01:09]} Ne8 {[%emt 0:00:51]} 25. Bh3 {[%emt 0:00:20]} Ng7 {[%emt 0:06:27]} 26. Kb2 {[%emt 0:03:37]} Kb7 {[%emt 0:00:53]} 27. Rc1 {[%emt 0:00:17]} Nb8 {[%emt 0:02:43]} 28. c3 {[%emt 0:04:20]} Nc6 {[%emt 0:02:15]} 29. Red1 {[%emt 0:08:06]} Ka7 {[%emt 0:03:38]} 30. cxb4 {[%emt 0:01:42]} Nxb4 {[%emt 0:00:12]} 31. Rc5 {[%emt 0:02:38]} Rb8 {[%emt 0:09:51]} 32. Qc3 {[%emt 0:04:09]} Rb7 {[%emt 0:01:33]} 33. Bf1 {[%emt 0:05:01]} Nf5 {[%emt 0:01:28]} 34. Bb5 {[%emt 0:01:07]} Nd6 {[%emt 0:01:55]} 35. Bxa6 {[%emt 0:02:16]} Qxa6 {[%emt 0:00:05]} 36. Ka1 {[%emt 0:02:36]} Rhb8 {[%emt 0:00:21]} 37. Rb1 {[%emt 0:00:29]} Nf5 {[%emt 0:01:45]} 38. N2d3 {[%emt 0:00:54]} Nxh4 {[%emt 0:02:00]} 39. Ne5 {[%emt 0:00:45]} Nf5 {[%emt 0:02:42]} 40. Nfd3 {[%emt 0:00:31]} Qb6 {[%emt 0:01:05]} 41. Nxb4 {[%emt 0:01:14]} axb4 {[%emt 0:00:05]} 42. Qd2 {[%emt 0:01:26]} Ka8 {[%emt 0:01:07]} 43. Rbc1 {[%emt 0:01:15]} Ne7 {[%emt 0:00:31]} 44. Ka2 {[%emt 0:02:46]} Ra7 {[%emt 0:00:12]} 45. Nxf7 {[%emt 0:00:35]} Qb7 {[%emt 0:00:45]} 46. Nd6 {[%emt 0:00:32]} Qd7 {[%emt 0:00:09]} 47. Nf7 {[%emt 0:02:41]} Rb6 {[%emt 0:00:17]} 48. Ne5 {[%emt 0:00:25]} Qe8 {[%emt 0:00:16]} 49. Kb2 {[%emt 0:00:26]} Qf8 {[%emt 0:01:18]} 50. Nxg6 {[%emt 0:02:33]} Qxf3 {[%emt 0:00:33]} 51. Nxe7 {[%emt 0:00:25]} Rxe7 {[%emt 0:00:01]} 52. Qc2 {[%emt 0:00:29]} Qf4 {[%emt 0:00:59]} 53. Ra5+ {[%emt 0:01:25]} Ra7 {[%emt 0:00:04]} 54. Qc8+ {[%emt 0:00:12]} Qb8 {[%emt 0:00:25]} 55. Rxa7+ {[%emt 0:00:38]} Kxa7 {[%emt 0:00:01]} 56. Rc7+ {[%emt 0:00:10]} Ka8 {[%emt 0:00:36]} 57. g6 {[%emt 0:00:23]} Qxc8 {[%emt 0:01:22]} 58. Rxc8+ {[%emt 0:00:07]} Kb7 {[%emt 0:00:05]} 59. Rf8 {[%emt 0:00:46]} e5 {[%emt 0:00:09]} 60. g7 {[%emt 0:00:08]} 1-0

[Event "Icelandic Team-ch Premier 2021-22"]
[Site "Reykjavik"]
[Date "2022.03.05"]
[Round "9.24"]
[White "Sigurjonsson, Stefan Th."]
[Black "Crevatin, Leo"]
[Result "1-0"]
[ECO "B13"]
[WhiteElo "2101"]
[BlackElo "2267"]
[Annotator "ChessBase"]
[PlyCount "98"]
[EventDate "2022.03.05"]
[EventType "team-tourn"]
[EventCountry "ISL"]
[SourceTitle "playchess.com"]
[Source "ChessBase"]
[SourceQuality "1"]
[TimeControl "5400+30"]

1. e4 {[%emt 0:01:10]} c6 {[%emt 0:02:04]} 2. d4 {[%emt 0:00:00]} d5 {[%emt 0:00:08]} 3. exd5 {[%emt 0:00:00]} cxd5 {[%emt 0:00:02]} 4. Bd3 {[%emt 0:00:00]} Nc6 {[%emt 0:00:08]} 5. c3 {[%emt 0:00:00]} Qc7 {[%emt 0:00:28]} 6. h3 {[%emt 0:00:03]} g6 {[%emt 0:01:07]} 7. Nf3 {[%emt 0:01:06]} Bg7 {[%emt 0:00:10]} 8. O-O {[%emt 0:00:09]} Nf6 {[%emt 0:01:30]} 9. Re1 {[%emt 0:00:25]} O-O {[%emt 0:00:47]} 10. Qc2 {[%emt 0:01:58]} Nh5 {[%emt 0:04:46]} 11. Nbd2 {[%emt 0:02:47]} Nf4 {[%emt 0:02:04]} 12. Nf1 {[%emt 0:00:27]} Nxd3 {[%emt 0:02:12]} 13. Qxd3 {[%emt 0:00:03]} Bf5 {[%emt 0:02:30]} 14. Qe2 {[%emt 0:02:29]} Rad8 {[%emt 0:03:31]} 15. Ng3 {[%emt 0:00:18]} Bd7 {[%emt 0:01:24]} 16. Ne5 {[%emt 0:07:04]} Rfe8 {[%emt 0:05:39]} 17. Bf4 {[%emt 0:02:59]} Qb6 {[%emt 0:05:38]} 18. b3 {[%emt 0:11:21]} Bc8 {[%emt 0:03:23]} 19. Qf3 {[%emt 0:08:09]} f6 {[%emt 0:06:16]} 20. Ng4 {[%emt 0:07:02]} Bxg4 {[%emt 0:01:11]} 21. Qxg4 {[%emt 0:01:19]} e5 {[%emt 0:00:18]} 22. dxe5 {[%emt 0:01:32]} fxe5 {[%emt 0:00:21]} 23. Bg5 {[%emt 0:07:00]} Rd6 {[%emt 0:02:28]} 24. Rad1 {[%emt 0:20:37]} Rf8 {[%emt 0:03:52]} 25. Re2 {[%emt 0:00:52]} e4 {[%emt 0:10:17]} 26. Qh4 {[%emt 0:09:24]} Ne5 {[%emt 0:05:57]} 27. c4 {[%emt 0:09:47]} dxc4 {[%emt 0:05:06]} 28. Rxd6 {[%emt 0:01:32]} Qxd6 {[%emt 0:00:03]} 29. Qxe4 {[%emt 0:02:45]} cxb3 {[%emt 0:00:10]} 30. axb3 {[%emt 0:00:29]} Qd1+ {[%emt 0:00:26]} 31. Re1 {[%emt 0:00:14]} Qxb3 {[%emt 0:00:18]} 32. Rb1 {[%emt 0:00:24]} Qf7 {[%emt 0:00:47]} 33. Be3 {[%emt 0:02:29]} Nc6 {[%emt 0:02:40]} 34. Qa4 {[%emt 0:00:19]} Rd8 {[%emt 0:02:24]} 35. Ne4 {[%emt 0:00:15]} Bd4 {[%emt 0:03:28]} 36. Ng5 {[%emt 0:00:39]} Qd5 {[%emt 0:02:48]} 37. Rb5 {[%emt 0:00:02]} Qd7 {[%emt 0:09:40]} 38. Qb3+ {[%emt 0:00:06]} Kf8 {[%emt 0:00:50]} 39. Rxb7 {[%emt 0:01:38]} Na5 {[%emt 0:01:06]} 40. Rxd7 {[%emt 0:00:18]} Nxb3 {[%emt 0:00:08]} 41. Rxd8+ {[%emt 0:00:10]} Ke7 {[%emt 0:00:03]} 42. Rxd4 {[%emt 0:00:14]} Nxd4 {[%emt 0:00:00]} 43. Bxd4 {[%emt 0:00:10]} a5 {[%emt 0:00:03]} 44. Nxh7 {[%emt 0:00:10]} a4 {[%emt 0:00:02]} 45. f4 {[%emt 0:00:16]} a3 {[%emt 0:02:22]} 46. g4 {[%emt 0:00:22]} a2 {[%emt 0:00:57]} 47. f5 {[%emt 0:00:38]} gxf5 {[%emt 0:00:07]} 48. gxf5 {[%emt 0:00:10]} a1=B {[%emt 0:00:05]} 49. Bxa1 {[%emt 0:00:09]} Ke8 {[%emt 0:00:32]} 1-0

[Event "Icelandic Team-ch Premier 2021-22"]
[Site "Reykjavik"]
[Date "2022.03.06"]
[Round "10.1"]
[White "Hillarp Persson, Tiger"]
[Black "Gretarsson, Hjorvar Steinn"]
[Result "1/2-1/2"]
[ECO "E32"]
[WhiteElo "2508"]
[BlackElo "2548"]
[Annotator "ChessBase"]
[PlyCount "93"]
[EventDate "2022.03.05"]
[EventType "team-tourn"]
[EventCountry "ISL"]
[SourceTitle "playchess.com"]
[Source "ChessBase"]
[SourceQuality "1"]
[TimeControl "5400+30"]

1. d4 {[%emt 0:00:03]} Nf6 {[%emt 0:03:15]} 2. c4 {[%emt 0:00:09]} e6 {[%emt 0:00:04]} 3. Nc3 {[%emt 0:00:15]} Bb4 {[%emt 0:00:07]} 4. Qc2 {[%emt 0:00:06]} d6 {[%emt 0:02:19]} 5. Nf3 {[%emt 0:01:10]} O-O {[%emt 0:00:45]} 6. Bd2 {[%emt 0:00:45]} c5 {[%emt 0:00:37]} 7. a3 {[%emt 0:00:36]} Bxc3 {[%emt 0:00:33]} 8. Bxc3 {[%emt 0:00:10]} cxd4 {[%emt 0:00:19]} 9. Nxd4 {[%emt 0:00:10]} a6 {[%emt 0:08:36]} 10. e3 {[%emt 0:02:03]} b6 {[%emt 0:13:44]} 11. Be2 {[%emt 0:03:23]} Bb7 {[%emt 0:01:10]} 12. O-O {[%emt 0:00:08]} Qc7 {[%emt 0:01:21]} 13. Rac1 {[%emt 0:12:01]} Nbd7 {[%emt 0:01:18]} 14. Rfd1 {[%emt 0:03:22]} Rac8 {[%emt 0:03:29]} 15. Be1 {[%emt 0:22:14]} Qb8 {[%emt 0:05:55]} 16. Qb1 {[%emt 0:00:55]} Be4 {[%emt 0:03:18]} 17. Qa2 {[%emt 0:00:50]} e5 {[%emt 0:03:56]} 18. Nf3 {[%emt 0:00:21]} Bc6 {[%emt 0:01:08]} 19. Nd2 {[%emt 0:01:02]} Qb7 {[%emt 0:06:58]} 20. Bf1 {[%emt 0:00:09]} Rfd8 {[%emt 0:07:49]} 21. b3 {[%emt 0:06:48]} b5 {[%emt 0:02:23]} 22. cxb5 {[%emt 0:04:08]} axb5 {[%emt 0:00:40]} 23. a4 {[%emt 0:00:50]} Nc5 {[%emt 0:02:48]} 24. a5 {[%emt 0:00:24]} Bd5 {[%emt 0:07:54]} 25. Qb2 {[%emt 0:00:56]} Rc6 {[%emt 0:05:54]} 26. f3 {[%emt 0:23:16]} Rdc8 {[%emt 0:01:40]} 27. e4 {[%emt 0:02:33]} Be6 {[%emt 0:00:04]} 28. Bf2 {[%emt 0:00:06]} h6 {[%emt 0:00:29]} 29. Bxc5 {[%emt 0:03:53]} dxc5 {[%emt 0:00:17]} 30. b4 {[%emt 0:00:28]} Nd7 {[%emt 0:03:32]} 31. Kh1 {[%emt 0:02:02]} Kh7 {[%emt 0:03:21]} 32. bxc5 {[%emt 0:03:50]} Nxc5 {[%emt 0:03:44]} 33. Qxb5 {[%emt 0:00:14]} Qa7 {[%emt 0:00:06]} 34. Ra1 {[%emt 0:00:56]} Rd6 {[%emt 0:00:18]} 35. Nc4 {[%emt 0:02:35]} Bxc4 {[%emt 0:00:13]} 36. Qxc4 {[%emt 0:00:31]} Nd3 {[%emt 0:01:09]} 37. Qxd3 {[%emt 0:01:44]} Rxd3 {[%emt 0:00:10]} 38. Rxd3 {[%emt 0:00:24]} Rc2 {[%emt 0:03:35]} 39. a6 {[%emt 0:00:33]} Rb2 {[%emt 0:00:44]} 40. h3 {[%emt 0:00:45]} h5 {[%emt 0:00:20]} 41. Rd7 {[%emt 0:01:19]} Qf2 {[%emt 0:03:14]} 42. Rxf7 {[%emt 0:02:14]} h4 {[%emt 0:01:14]} 43. Rd7 {[%emt 0:00:37]} Ra2 {[%emt 0:00:19]} 44. Rxa2 {[%emt 0:00:25]} Qxf1+ {[%emt 0:00:30]} 45. Kh2 {[%emt 0:00:08]} Qe1 {[%emt 0:00:05]} 46. a7 {[%emt 0:01:05]} Qg3+ {[%emt 0:00:06]} 47. Kg1 {[%emt 0:00:10]} 1/2-1/2

[Event "Icelandic Team-ch Premier 2021-22"]
[Site "Reykjavik"]
[Date "2022.03.06"]
[Round "10.2"]
[White "Stefansson, Hannes"]
[Black "Bromann, Thorbjorn"]
[Result "1-0"]
[ECO "A40"]
[WhiteElo "2520"]
[BlackElo "2376"]
[Annotator "ChessBase"]
[PlyCount "55"]
[EventDate "2022.03.05"]
[EventType "team-tourn"]
[EventCountry "ISL"]
[SourceTitle "playchess.com"]
[Source "ChessBase"]
[SourceQuality "1"]
[TimeControl "5400+30"]

1. d4 {[%emt 0:00:04]} e6 {[%emt 0:00:07]} 2. c4 {[%emt 0:00:18]} Bb4+ {[%emt 0:00:05]} 3. Bd2 {[%emt 0:00:17]} c5 {[%emt 0:00:07]} 4. Bxb4 {[%emt 0:01:04]} cxb4 {[%emt 0:00:05]} 5. Nd2 {[%emt 0:00:52]} Nf6 {[%emt 0:12:05]} 6. e4 {[%emt 0:02:10]} d6 {[%emt 0:08:33]} 7. Qa4+ {[%emt 0:03:12]} Nc6 {[%emt 0:00:23]} 8. d5 {[%emt 0:05:32]} Qa5 {[%emt 0:00:18]} 9. Qxa5 {[%emt 0:01:57]} Nxa5 {[%emt 0:00:03]} 10. a3 {[%emt 0:10:47]} b3 {[%emt 0:00:27]} 11. Ne2 {[%emt 0:02:04]} O-O {[%emt 0:06:53]} 12. f3 {[%emt 0:07:52]} b5 {[%emt 0:10:06]} 13. cxb5 {[%emt 0:03:10]} exd5 {[%emt 0:00:17]} 14. exd5 {[%emt 0:00:07]} Bb7 {[%emt 0:03:29]} 15. Kf2 {[%emt 0:03:41]} Rac8 {[%emt 0:05:27]} 16. Nd4 {[%emt 0:01:29]} Bxd5 {[%emt 0:06:06]} 17. Bd3 {[%emt 0:00:27]} Bc4 {[%emt 0:14:00]} 18. Bxc4 {[%emt 0:03:16]} Nxc4 {[%emt 0:00:08]} 19. Nxc4 {[%emt 0:01:26]} Rxc4 {[%emt 0:00:03]} 20. Rad1 {[%emt 0:01:04]} Rfc8 {[%emt 0:02:17]} 21. Rhe1 {[%emt 0:00:22]} d5 {[%emt 0:22:18]} 22. Nxb3 {[%emt 0:06:07]} Rb8 {[%emt 0:00:40]} 23. Nd4 {[%emt 0:00:23]} a6 {[%emt 0:00:35]} 24. b3 {[%emt 0:00:59]} Rc5 {[%emt 0:03:06]} 25. bxa6 {[%emt 0:00:22]} Ra8 {[%emt 0:00:12]} 26. b4 {[%emt 0:00:47]} Rc3 {[%emt 0:00:13]} 27. b5 {[%emt 0:00:56]} Rxa3 {[%emt 0:00:06]} 28. Nc6 {[%emt 0:00:44]} 1-0

[Event "Icelandic Team-ch Premier 2021-22"]
[Site "Reykjavik"]
[Date "2022.03.06"]
[Round "10.3"]
[White "Karlsson, Bjorn-Ivar"]
[Black "Nagy, Gabor"]
[Result "1/2-1/2"]
[ECO "B22"]
[WhiteElo "2295"]
[BlackElo "2530"]
[Annotator "ChessBase"]
[PlyCount "40"]
[EventDate "2022.03.05"]
[EventType "team-tourn"]
[EventCountry "ISL"]
[SourceTitle "playchess.com"]
[Source "ChessBase"]
[SourceQuality "1"]
[TimeControl "5400+30"]

1. e4 {[%emt 0:01:33]} c5 {[%emt 0:00:18]} 2. Nf3 {[%emt 0:01:14]} e6 {[%emt 0:03:02]} 3. c3 {[%emt 0:03:40]} d5 {[%emt 0:00:40]} 4. exd5 {[%emt 0:02:09]} Qxd5 {[%emt 0:00:31]} 5. d4 {[%emt 0:00:07]} Nf6 {[%emt 0:00:30]} 6. Bd3 {[%emt 0:00:18]} Be7 {[%emt 0:01:58]} 7. O-O {[%emt 0:01:11]} O-O {[%emt 0:03:58]} 8. c4 {[%emt 0:14:21]} Qd8 {[%emt 0:01:23]} 9. dxc5 {[%emt 0:01:21]} Nbd7 {[%emt 0:00:56]} 10. c6 {[%emt 0:00:59]} Nc5 {[%emt 0:06:12]} 11. Bc2 {[%emt 0:06:32]} Qc7 {[%emt 0:04:43]} 12. Qe2 {[%emt 0:01:59]} Qxc6 {[%emt 0:04:46]} 13. Nc3 {[%emt 0:01:39]} a6 {[%emt 0:11:51]} 14. Ne5 {[%emt 0:07:40]} Qe8 {[%emt 0:00:29]} 15. Bf4 {[%emt 0:02:58]} b5 {[%emt 0:04:46]} 16. b4 {[%emt 0:08:11]} Ncd7 {[%emt 0:00:11]} 17. c5 {[%emt 0:10:13]} Nxe5 {[%emt 0:00:50]} 18. Bxe5 {[%emt 0:00:28]} Bb7 {[%emt 0:00:17]} 19. Rfd1 {[%emt 0:07:59]} Qc6 {[%emt 0:05:32]} 20. f3 {[%emt 0:00:32]} Rad8 {[%emt 0:01:04]} 1/2-1/2